Cogmind - Beta 15 @@@ ROGUE MODE // 2025.06.11 @ 18:27:51 Player: EX-OCT Result: Destroyed by 7L-1KP(g) with Beamcaster Performance ------------- Evolutions (4) 2000 Regions Visited (7) 1400 Robots Destroyed (102) 510 Value Destroyed (3518) 3518 Prototype IDs (19) 380 Alien Tech Used (0) 0 Bonus (1490) 1490 TOTAL SCORE: 9298 Bonus ------- High Alert Combat Kills 690 Registered with UFD 300 Met Optimus in HQ 500 Cogmind --------- Core Integrity 0/850 Matter 300/300 Energy 99/100 System Corruption 29% Temperature Cool (9) Movement Core (100) Ox1 Location -6/Lower Caves Parts ------- > --- POWER (1) -------- (None) > --- PROPULSION (4) --- Advanced Treads > --- UTILITY (7) ------ Seismic Detector Improved Core Shielding Hacking Suite Improved Hacking Suite System Shield > --- WEAPON (3) ------- Plasma Lance > --- INVENTORY (5) ---- Mini Smartbomb Launcher Remote Datajack Axe Peak State ------------ > --- POWER ------------ Light Fission Core > --- PROPULSION ------- Centrium Heavy Treads Centrium Heavy Treads > --- UTILITY ---------- Scrap Suit Experimental Power Amplifier Advanced Heat Sink Large Storage Unit Improved Sensor Array Improved Signal Interpreter > --- WEAPON ----------- Overtuned Railgun Gauss Cannon Plasma Lance > --- INVENTORY -------- Improved Ion Engine Fission Core Scrap Suit Improved Hacking Suite System Shield Overtuned Pulse Rifle Mini Smartbomb Launcher Remote Datajack CPS Tube CPS Tube [Rating: 94] Favorites ----------- Power Light Ion Engine Engine Light Ion Engine Power Core Light Fission Core Propulsion Aluminum Leg Treads Centrium Heavy Treads Leg Aluminum Leg Wheel Compact Wheel Utility Large Storage Unit Device Improved Sensor Array Storage Large Storage Unit Processor Improved Signal Interpreter Hackware Improved Hacking Suite Protection Improved Medium Armor Plating Weapon Overtuned Railgun Energy Gun Overtuned Pulse Rifle Ballistic Gun Overtuned Railgun Ballistic Cannon Battle Cannon Launcher Mini Smartbomb Launcher Special Weapon Remote Datajack Impact Weapon Flail Slashing Weapon Axe Piercing Weapon Plasma Lance Build | -11 -10 -10 -9 -6 -6 -6 -6 ------- Run | Yrd Mat Sub Scr Fac Was Fac Low Slots Evolved 8 | . . . . 8 . . . Power . | . . . . . . . . Propulsion 2 | . . . . 2 . . . Utility 5 | . . . . 5 . . . Weapon 1 | . . . . 1 . . . Parts Attached 77 | 7 11 2 10 8 . 36 3 Power 10 | 1 2 . 3 . . 3 1 Engine 6 | 1 2 . 2 . . . 1 Core 4 | . . . 1 . . 3 . Reactor . | . . . . . . . . Propulsion 19 | 2 5 . 2 2 . 8 . Treads 9 | . . . 2 1 . 6 . Leg 7 | 2 5 . . . . . . Wheel 3 | . . . . 1 . 2 . Hover . | . . . . . . . . Flight . | . . . . . . . . Utility 30 | 1 2 1 2 4 . 20 . Device 18 | 1 1 . 1 3 . 12 . Storage 1 | . 1 . . . . . . Processor 1 | . . . . 1 . . . Hackware 3 | . . . . . . 3 . Protection 7 | . . 1 1 . . 5 . Artifact . | . . . . . . . . Weapon 18 | 3 2 1 3 2 . 5 2 Energy Gun 2 | 1 . . . . . 1 . Energy Cannon . | . . . . . . . . Ballistic Gun 7 | 2 1 . 2 1 . . 1 Ballistic Cannon 3 | . 1 1 . . . 1 . Launcher 1 | . . . . . . 1 . Special Weapon 2 | . . . 1 . . 1 . Impact Weapon 1 | . . . . 1 . . . Slashing Weapon 1 | . . . . . . . 1 Piercing Weapon 1 | . . . . . . 1 . Special Melee Weapon . | . . . . . . . . Unidentified Prototypes 5 | . . . . . . 5 . Parts Lost 30 | . 1 1 . . . 25 3 Power 4 | . 1 . . . . 2 1 Propulsion 7 | . . . . . . 6 1 Utility 12 | . . 1 . . . 11 . Weapon 7 | . . . . . . 6 1 Highest Loss Streak 11 | . 1 1 . . . 11 3 To Critical Strikes 2 | . . . . . . 2 . Average Backups 10 | . 6 12 14 10 13 11 1 Power 1 | . 1 2 1 . . . . Propulsion 1 | . 2 5 2 . . . . Utility 2 | . 1 2 3 2 4 3 . Weapon 3 | . . 2 4 4 5 3 . Tool/Special . | . . . . . . . . Unused Backups 8 | . . . 5 . . 3 . Power 1 | . . . 1 . . . . Propulsion 1 | . . . 1 . . . . Utility 2 | . . . 2 . . . . Weapon 2 | . . . 1 . . 1 . Tool/Special 2 | . . . . . . 2 . Average Slot Usage (%) 88 | . 98 94 99 90 93 78 65 Engine 8 | . 12 14 13 6 6 1 3 Core 1 | . . . . . . 3 . Treads 9 | . . . 4 19 20 13 12 Leg 12 | . 28 28 23 . . . . Wheel 1 | . . . . 4 6 3 . Device 14 | . 14 4 11 19 20 18 6 Storage 9 | . 13 14 14 6 6 5 . Processor 2 | . . . . 5 6 5 . Hackware 1 | . . . . . . 1 20 Protection 3 | . . 5 2 6 6 4 6 Ballistic Gun 14 | . 15 14 16 18 20 12 . Ballistic Cannon 5 | . 12 14 9 . . 2 . Peak Build Rating 94 | 6 8 9 22 54 54 94 48 Average Rating 35 | 4 7 8 12 51 54 63 43 On Entrance 23 | . 6 8 8 21 54 54 34 Naked Turns 25 | . . . . . . 25 . Heaviest Build 62 | 7 31 32 40 54 54 62 22 Greatest Support 160 | 20 20 20 40 58 16 160 52 Greatest Overweight (x) 18 | . 1 1 1 3 3 18 1 Average Overweight (x) 1 | . . 1 . 2 3 1 . Largest Inventory Capacity 15 | 5 15 15 15 15 15 15 5 Average Capacity 13 | 5 14 15 15 15 15 14 5 Most Carried 15 | 1 12 13 15 15 15 15 3 Average Carried 11 | . 6 12 14 12 15 12 1 Final Capacity 15 | 5 15 15 15 15 15 5 5 Final Carried 15 | 1 12 13 14 15 15 2 3 Class Distribution -------------------- 37% | Mutant 19% | Derelict-Scrapper 15% | Scavenger-Mutant 8% | Hacker-Mutant 6% | Scrapper 4% | Derelict-Mutant 4% | Tank Dominant Class ---------------- Mutant | -10/Materials Scavenger-Mutant | -10/Subcaves Mutant | -9/Scraptown Derelict-Scrapper | -6/Factory Derelict-Scrapper | -6/Waste Derelict-Scrapper | -6/Factory Hacker-Mutant | -6/Lower Caves Resources | -11 -10 -10 -9 -6 -6 -6 -6 ----------- Run | Yrd Mat Sub Scr Fac Was Fac Low Matter Collected 3934 | 318 475 86 133 40 . 2641 241 Remotely . | . . . . . . . . Salvage Created 4505 | 122 521 69 . 84 . 3314 395 Parts 206 | 3 36 3 . 3 . 156 5 Haulers Intercepted . | . . . . . . . . Recyclers Shooed 8 | . 1 . . . . 7 . Parts Field Recycled . | . . . . . . . . Retrieved Matter . | . . . . . . . . Parts Self-Destructed 6 | . . 6 . . . . . Prevented . | . . . . . . . . Kills | -11 -10 -10 -9 -6 -6 -6 -6 ------- Run | Yrd Mat Sub Scr Fac Was Fac Low Combat Hostiles Destroyed 67 | . 18 3 . 1 . 43 2 Melee 5 | . . . . . . 3 2 Guns 35 | . 9 1 . 1 . 24 . Cannons 22 | . 9 2 . . . 11 . AOE 4 | . . . . . . 4 . Classes Destroyed 18 | 2 3 1 . 1 . 11 . Worker 9 | . . . . . . 9 . Builder 7 | . . . . . . 7 . Tunneler 3 | 1 . . . . . 2 . Recycler 11 | 1 1 . . . . 9 . Mechanic 2 | . . . . . . 2 . Watcher 3 | . 1 . . 1 . 1 . Swarmer 16 | . 8 2 . . . 6 . Saboteur 1 | . . . . . . 1 . Grunt 26 | . 10 . . . . 16 . Brawler 2 | . . . . . . 2 . Duelist 2 | . . . . . . 2 . Protector 1 | . . . . . . 1 . Sentry 2 | . . . . . . 2 . Specialist 1 | . . . . . . 1 . Hunter 4 | . . . . . . 4 . Programmer 8 | . . . . 1 . 7 . Behemoth 1 | . . . . . . 1 . Subdweller 1 | . . 1 . . . . . Thug 1 | . . . . . . . 1 Butcher 1 | . . . . . . . 1 Best Kill Streak 7 | 1 5 2 . 1 . 7 2 Combat Bots Only 5 | . 5 2 . 1 . 5 2 Max Kills in Single Turn 3 | 1 1 1 . 1 . 3 1 Gunslinging 1 | . . . . . . 1 . Exploded 1 | . . . . . . 1 . Melee 1 | . . . . . . 1 1 Uniques/NPCs Destroyed . | . . . . . . . . Combat | -11 -10 -10 -9 -6 -6 -6 -6 -------- Run | Yrd Mat Sub Scr Fac Was Fac Low Hostile Shots Fired 708 | . 92 34 . 2 . 570 10 Missed 170 | . 24 8 . . . 136 2 Hits 538 | . 68 26 . 2 . 434 8 Melee 6 | . . . . . . . 6 Projectile 532 | . 68 26 . 2 . 434 2 Critical Strikes 12 | . . . . . . 12 . Actively Blocked 2 | . . . . . . 2 . Part Disruptions 1 | . . . . . . 1 . Damage Taken 8658 | . 683 315 . 30 . 7375 255 Core 1066 | . 166 40 . . . 797 63 Absorbed by Shields . | . . . . . . . . Reduced by Siege Mode 277 | . . . . . . 277 . Redirected to Shielding 154 | . . . . . . 139 15 Ignored by Resistances 35 | . . . . . . 35 . Regen/Repaired (Parts) 605 | . 82 . 278 . . 245 . Core Remaining (%) 58 | 100 . . 17 . . . . Volleys Fired 293 | 12 57 13 . 7 6 197 1 Largest 3 | 2 2 2 . 3 3 3 1 Hottest 160 | 40 50 53 . 95 95 160 28 Shots Fired 634 | 24 114 26 . 22 19 428 1 Gun 474 | 24 68 13 . 22 19 327 1 Cannon 154 | . 46 13 . . . 95 . Launcher 5 | . . . . . . 5 . Special 1 | . . . . . . 1 . Kinetic 577 | 24 114 26 . 22 19 371 1 Thermal 51 | . . . . . . 51 . Explosive 5 | . . . . . . 5 . Electromagnetic . | . . . . . . . . Robot Hit Streak 23 | 3 8 6 . 3 5 23 . Robot Miss Streak 8 | 4 6 3 . 2 2 8 1 Penetration Max 2 | . . . . . . 2 . Secondary Targets 4 | . . . . . . 4 . Max Gunslinging Chain 1 | . . . . . . 1 . Shots Hit Robots 386 | 12 68 15 . 12 12 254 13 Core Hits 190 | 2 30 4 . 5 . 145 4 Critical Kills 6 | . . . . . . 6 . Critical Parts Destroyed 9 | . . . . . . 9 . Critical Strikes 31 | . 2 1 . . 2 25 1 Burn 2 | . . . . . . 2 . Destroy 16 | . . . . . 2 14 . Blast 11 | . 2 1 . . . 8 . Smash 1 | . . . . . . 1 . Impale 1 | . . . . . . . 1 Melee Attacks 66 | . . . . 1 . 34 31 Impact 15 | . . . . 1 . 14 . Slashing 14 | . . . . . . . 14 Piercing 37 | . . . . . . 20 17 Sneak Attacks 4 | . . . . . . 4 . Combat Hostiles . | . . . . . . . . Follow-up Attacks . | . . . . . . . . Damage Inflicted 13156 | 120 961 187 . 390 400 10436 662 Guns 7086 | 120 498 45 . 390 400 5633 . Cannons 2088 | . 460 142 . . . 1486 . Explosions 2460 | . . . . . . 2460 . Melee 1474 | . . . . . . 812 662 Ramming 48 | . 3 . . . . 45 . Kinetic 8314 | 120 958 187 . 390 400 6259 . Thermal 1446 | . . . . . . 1446 . Explosive 1624 | . . . . . . 1624 . Electromagnetic 250 | . . . . . . 250 . Impact 303 | . . . . . . 303 . Slashing 453 | . . . . . . . 453 Piercing 718 | . . . . . . 509 209 Highest Corruption 30 | . . . . 5 29 30 29 Average Corruption 23 | . . . . 4 17 25 29 Corruption Purged 14 | . . . . . . 14 . Corruption Blocked . | . . . . . . . . Effects 215 | . . . . 9 11 168 27 Message Errors 48 | . . . . 3 3 32 10 Matter Fused 48 | . . . . 2 1 37 8 Heat Flow Errors 26 | . . . . 1 2 21 2 Energy Discharges 20 | . . . . . . 17 3 Parts Rejected 3 | . . . . . 1 2 . Parts Fused 1 | . . . . . . 1 . Data Loss (minor) 18 | . . . . 1 2 14 1 Data Loss (major) 9 | . . . . 1 . 7 1 Misfires 8 | . . . . 1 1 6 . Alerts 5 | . . . . . . 4 1 Misdirections 4 | . . . . . 1 2 1 Weapon Failures 25 | . . . . . . 25 . Overload Shots . | . . . . . . . . Overflow Damage 526 | . . . . . . 369 157 Projectiles 1 | . . . . . . 1 . Explosions 218 | . . . . . . 218 . Melee 307 | . . . . . . 150 157 Knockbacks 21 | . 6 3 . . . 12 . Impact 2 | . . . . . . 2 . Kinetic 19 | . 6 3 . . . 10 . Secondary . | . . . . . . . . Self-Inflicted Damage 138 | . . . . . . 138 . Shots 3 | . . . . . . 3 . Rammed 7 | . . . . . . 7 . Targets Rammed 8 | . 1 . . . . 7 . Kicked 1 | . 1 . . . . . . Crushed . | . . . . . . . . Highest Temperature 520 | . 21 . . 210 239 520 97 Average Temperature 99 | . 4 . . 61 104 107 50 Received Heat Transfer 1438 | . 228 . . . . 1192 18 Effects 15 | . . . . . . 15 . Shutdowns 2 | . . . . . . 2 . Energy Bleed 2 | . . . . . . 2 . Interference 8 | . . . . . . 8 . Damage (minor) 3 | . . . . . . 3 . Siege Activations 10 | . . . . . . 10 . Total Turns 152 | . . . . . . 152 . Longest Duration 26 | . . . . . . 26 . Martial Activations . | . . . . . . . . Shielding Activations . | . . . . . . . . Robots Disrupted 1 | . . . . . . 1 . Combat Hostiles . | . . . . . . . . Robots Corrupted 2 | . . . . . . 2 . Combat Hostiles 1 | . . . . . . 1 . Parts Fried 5 | . . . . . . 5 . Impact Corruptions 6 | . . . . . . 6 . Robots Melted . | . . . . . . . . Combat Hostiles . | . . . . . . . . Parts Melted 4 | . . . . . . 4 . Heat Transferred 2450 | . . . . . . 2450 . Parts Sabotaged . | . . . . . . . . Parts Stolen . | . . . . . . . . Parts Stripped . | . . . . . . . . Power Chain Reactions . | . . . . . . . . Alert | -11 -10 -10 -9 -6 -6 -6 -6 ------- Run | Yrd Mat Sub Scr Fac Was Fac Low Maximum Alert Level 4 | . . . . . . 4 . Low Security (%) 61 | 100 100 . . 100 100 32 . Level 1 9 | . . . . . . 17 . Level 2 15 | . . . . . . 27 . Level 3 5 | . . . . . . 9 . Level 4 7 | . . . . . . 12 . Level 5 . | . . . . . . . . High Security . | . . . . . . . . Max Security . | . . . . . . . . Peak Influence 1376 | 5 185 . . 26 2 1376 . Initial . | . . . . . . . . Average 290 | . 59 . . 1 . 478 . Influence Increases 2971 | 10 586 50 . 68 5 2247 5 Destroy 0b10 Robot/C 1260 | . 360 40 . 20 . 840 . Destroy 0b10 Robot/NC 185 | 10 10 . . 5 . 155 5 Destroy Leader 286 | . 62 10 . 12 . 202 . Successful Hack 80 | . 16 . . 6 . 58 . Select Force Hacks 60 | . 60 . . . . . . Disable Machine 405 | . . . . 15 . 390 . Anti-Garrison Action 150 | . . . . . . 150 . Destroy Structure 305 | . 3 . . 10 5 287 . Lose Combat Pursuer 240 | . 75 . . . . 165 . Influence Decreases 2451 | 10 413 223 . 68 5 991 741 Entered New Map 549 | . . 84 . . . . 465 Time Decay 1452 | 10 403 139 . 58 5 591 246 Lost Part 290 | . 10 . . . . 250 30 Lost Ally 10 | . . . . 10 . . . Purge Threat 150 | . . . . . . 150 . Squads Dispatched 33 | . 5 . . 4 . 24 . Investigation 12 | . 3 . . 2 . 7 . Extermination 8 | . . . . 2 . 6 . Reinforcement 8 | . 2 . . . . 6 . Assault 5 | . . . . . . 5 . Garrison . | . . . . . . . . Intercept . | . . . . . . . . Searches Triggered . | . . . . . . . . Construction Impeded 2 | . . . . . . 2 . Haulers Reinforced 1 | . . . . . . 1 . Active Scanning Responses . | . . . . . . . . Cargo Convoy Interrupts 1 | . . . . . . 1 . Stealth | -11 -10 -10 -9 -6 -6 -6 -6 --------- Run | Yrd Mat Sub Scr Fac Was Fac Low Distress Signals 5 | . 2 . . . . 3 . Communications Jammed . | . . . . . . . . Distress Signals . | . . . . . . . . Times Spotted 125 | . 30 4 . 4 6 75 6 Peak Tracking Total 9 | . 6 3 . 1 6 9 4 Tactical Retreats 11 | . 4 . . . 1 5 1 Traps | -11 -10 -10 -9 -6 -6 -6 -6 ------- Run | Yrd Mat Sub Scr Fac Was Fac Low Traps Triggered 11 | . 1 . . 5 . 5 . Indirectly . | . . . . . . . . Trap Hack Attempts . | . . . . . . . . Triggered . | . . . . . . . . Disarmed . | . . . . . . . . Reprogrammed . | . . . . . . . . Reused . | . . . . . . . . Traps Extracted . | . . . . . . . . Installed . | . . . . . . . . Triggered . | . . . . . . . . Machines | -11 -10 -10 -9 -6 -6 -6 -6 ---------- Run | Yrd Mat Sub Scr Fac Was Fac Low Machines Disabled 28 | . . . . 1 . 27 . Max in Single Turn 9 | . . . . 1 . 9 . Garrison Access 2 | . . . . . . 2 . Machines Repaired . | . . . . . . . . Machines Dismantled . | . . . . . . . . Machines Sabotaged . | . . . . . . . . Overloaded Fab Kills . | . . . . . . . . Hacking | -11 -10 -10 -9 -6 -6 -6 -6 --------- Run | Yrd Mat Sub Scr Fac Was Fac Low Machines Accessed 39 | . 9 . 12 2 . 16 . Terminals 15 | . 6 . . 1 . 8 . Fabricators 2 | . . . . . . 2 . Repair Stations 2 | . 1 . . . . 1 . Recycling Units 7 | . 2 . . 1 . 4 . Scanalyzers 1 | . . . . . . 1 . Garrison Access . | . . . . . . . . Total Hacks 157 | . 29 . 78 4 . 46 . Successful 116 | . 15 . 78 2 . 21 . Failed 41 | . 14 . . 2 . 25 . Catastrophic 6 | . . . . . . 6 . Database Lockouts . | . . . . . . . . Manual 54 | . 20 . . 4 . 30 . Terminals 54 | . 24 . . 3 . 27 . Fabricators 4 | . . . . . . 4 . Repair Stations 6 | . 3 . . . . 3 . Recycling Units 11 | . 2 . . 1 . 8 . Scanalyzers 4 | . . . . . . 4 . Garrison Access . | . . . . . . . . Terminal Hacks 91 | . 7 . 78 . . 6 . Record 72 | . . . 72 . . . . Robot Analysis 6 | . 1 . 5 . . . . Prototype ID Bank 3 | . 2 . . . . 1 . Level Access Points 1 | . . . . . . 1 . Branch Access Points 1 | . . . . . . 1 . Terminal Index 1 | . 1 . . . . . . Alert Level 1 | . . . . . . 1 . Unreport Threat 1 | . . . . . . 1 . Locate Traps 1 | . 1 . . . . . . Zone Layout 3 | . 2 . . . . 1 . Proto ID Catalog 1 | . . . 1 . . . . Fabricator Hacks 1 | . . . . . . 1 . Network Status 1 | . . . . . . 1 . Repair Station Hacks 4 | . 2 . . . . 2 . Scan Component 2 | . 1 . . . . 1 . Repair 2 | . 1 . . . . 1 . Recycling Unit Hacks . | . . . . . . . . Scanalyzer 3 | . . . . . . 3 . Insert Component 1 | . . . . . . 1 . Analyze 2 | . . . . . . 2 . Garrison Access Hacks . | . . . . . . . . Unauthorized Hacks 17 | . 6 . . 2 . 9 . Terminals 11 | . 4 . . 1 . 6 . Assimilate 1 | . . . . 1 . . . Botnet 10 | . 4 . . . . 6 . Fabricators . | . . . . . . . . Repair Stations . | . . . . . . . . Recycling Units 6 | . 2 . . 1 . 3 . Tunnel 2 | . 2 . . . . . . Fedlink 4 | . . . . 1 . 3 . Scanalyzers . | . . . . . . . . Garrison Access . | . . . . . . . . Data Cores Recovered . | . . . . . . . . Used . | . . . . . . . . Hacking Detections 20 | . 7 . . 1 . 12 . Full Trace Events 5 | . 1 . . . . 4 . Feedback Events 1 | . . . . . . 1 . Corruption 1 | . . . . . . 1 . Feedback Blocked . | . . . . . . . . Robot Schematics Acquired . | . . . . . . . . Robots Built . | . . . . . . . . Authchips . | . . . . . . . . Time . | . . . . . . . . Total Robot Build Rating . | . . . . . . . . Part Schematics Acquired 1 | . . . . . . 1 . Parts Built . | . . . . . . . . Authchips . | . . . . . . . . Time . | . . . . . . . . Total Part Build Rating . | . . . . . . . . Parts Repaired 2 | . 1 . . . . 1 . Time 94 | . 26 . . . . 68 . Parts Recycled . | . . . . . . . . Recycled Matter . | . . . . . . . . Retrieved Matter . | . . . . . . . . Retrieved Components . | . . . . . . . . Parts Scanalyzed 1 | . . . . . . 1 . Part Schematics Acquired 1 | . . . . . . 1 . Parts Damaged 1 | . . . . . . 1 . Bothacking | -11 -10 -10 -9 -6 -6 -6 -6 ------------ Run | Yrd Mat Sub Scr Fac Was Fac Low Used RIF Installer . | . . . . . . . . Robots Hacked . | . . . . . . . . Non-combat . | . . . . . . . . Combat . | . . . . . . . . Robot Hacks Applied . | . . . . . . . . Relay Couplers Released 4 | . . . . . . 4 . Machine Destruction 4 | . . . . . . 4 . Fabnet Peak Effective % . | . . . . . . . . Robots Rewired . | . . . . . . . . Allies Hacked . | . . . . . . . . Hacks Repelled . | . . . . . . . . Allies | -11 -10 -10 -9 -6 -6 -6 -6 -------- Run | Yrd Mat Sub Scr Fac Was Fac Low Total Allies 1 | . . . . 1 . . . Largest Group 1 | . . . . 1 . . . Highest-Rated Group 10 | . . . . 10 . . . Highest-Rated Ally 10 | . . . . 10 . . . Total Orders . | . . . . . . . . Ally Attacks . | . . . . . . . . Total Damage . | . . . . . . . . Kills . | . . . . . . . . Allies Corrupted . | . . . . . . . . Allies Melted . | . . . . . . . . Intel | -11 -10 -10 -9 -6 -6 -6 -6 ------- Run | Yrd Mat Sub Scr Fac Was Fac Low Active Infowar (turns) 5512 | 14 1194 91 . 661 222 2799 531 Sensors 3568 | . . . . 661 222 2685 . Seismic 1944 | 14 1194 91 . . . 114 531 Robot Analysis Total 6 | . 1 . 5 . . . . Derelict Logs Recovered 1 | . . 1 . . . . . Drone Launches . | . . . . . . . . Drone Recoveries . | . . . . . . . . Exploration | -11 -10 -10 -9 -6 -6 -6 -6 ------------- Run | Yrd Mat Sub Scr Fac Was Fac Low Turns Passed 8692 | 94 1194 343 2629 679 222 3000 531 Spaces Moved 4739 | 43 508 152 1545 434 144 1623 290 Core 275 | 3 . . . . . 259 13 Treads 1139 | . . . 270 69 . 523 277 Legs 1975 | 40 508 152 1275 . . . . Wheels 1350 | . . . . 365 144 841 . Hover . | . . . . . . . . Flight . | . . . . . . . . Fastest Speed 50 | 50 120 190 120 145 145 50 100 Average Speed 153 | 115 189 190 166 146 145 130 149 Slowest Speed 950 | 120 190 190 190 153 145 950 152 Overloaded Moves . | . . . . . . . . Propulsion Burnouts . | . . . . . . . . Robots Hopped . | . . . . . . . . Potential Cave-ins 8 | . . . . . . 8 . Cave-ins Triggered . | . . . . . . . . Exploration Rate (%) 47 | 5 86 14 92 13 84 49 38 Regions Visited 7 Branch Regions 3 Pre-discovered Areas 4 | . 2 1 . . . 1 . Known Exits Taken 1 | . . . . . . 1 . Unknown Exits Taken 4 | 1 1 1 1 . . . . Scrap Searched 8 | . . . 8 . . . . Spaces Dug 31 | . . . . . . 22 9 Terrain Destroyed 364 | . . . . 17 6 332 9 Melee 19 | . . . . . . 10 9 Projectile 204 | . . . . 17 6 181 . AOE 140 | . . . . . . 140 . Terrain Rammed . | . . . . . . . . Walls Destroyed . | . . . . . . . . Machines Disabled . | . . . . . . . . Actions | -11 -10 -10 -9 -6 -6 -6 -6 --------- Run | Yrd Mat Sub Scr Fac Was Fac Low Total 5654 | 62 624 183 1602 467 150 2225 341 Wait 366 | . 44 16 1 10 . 278 17 Move 4734 | 42 507 151 1544 434 143 1623 290 Hop . | . . . . . . . . Pick Up 40 | 1 2 . 21 5 . 11 . Fast Attach 36 | 6 4 1 1 3 1 17 3 Attach 29 | . . . 3 4 . 21 1 Detach 8 | . 1 1 . . . 4 2 Swap 31 | 1 8 1 9 3 . 9 . Drop 43 | . . . 23 . . 20 . Fire 293 | 12 57 13 . 7 6 197 1 Melee 62 | . . . . 1 . 34 27 Ram . | . . . . . . . . Kick 1 | . 1 . . . . . . Crush 6 | . . . . . . 6 . Escape Stasis 5 | . . . . . . 5 . Rewire . | . . . . . . . . Trap . | . . . . . . . . Miscellaneous . | . . . . . . . . Route ------- -11/Scrapyard -10/Materials (discovered 5 exits: [*Mat x2] / [*Min x2] / [*Sub]) -10/Subcaves -9/Scraptown (discovered 2 exits: *Fac x2) -6/Factory -6/Waste -6/Factory (discovered 6 exits: Fac x4 / *Low x2) -6/Lower Caves History --------- Turn | Location | Event 3 | -11/Scrapyard | Discovered new exit (range 16) 95 | -11/Scrapyard | Entered Materials 95 | -10/Materials | Discovered new exit (range 8) 309 | -10/Materials | Build established: Mutant 487 | -10/Materials | Discovered new exit (range 5) 551 | -10/Materials | Repaired Assault Rifle 610 | -10/Materials | Discovered new exit (range 16) 833 | -10/Materials | Discovered new exit (range 15) 1120 | -10/Materials | Core integrity fell below 50% 1264 | -10/Materials | Discovered new exit (range 9) 1289 | -10/Materials | Entered Subcaves 1290 | -10/Subcaves | Approached by a straggling Scientist 1330 | -10/Subcaves | Curiously followed by a Cobbler waking with a query about "LVR3C" 1410 | -10/Subcaves | Shifting Twisted Machinery released Battle Cannon 1426 | -10/Subcaves | Shifting Twisted Machinery released Sub. Laser 1535 | -10/Subcaves | Core integrity fell below 20% 1545 | -10/Subcaves | Learned location of Zion (-6) 1549 | -10/Subcaves | Build established: Scavenger-Mutant 1628 | -10/Subcaves | Scientist uncovered a shortcut to Scraptown 1632 | -10/Subcaves | Entered Scraptown 1910 | -9/Scraptown | Visited Symbiants 1985 | -9/Scraptown | Visited Cyclists 2011 | -9/Scraptown | Visited Spacefarers 2169 | -9/Scraptown | Heard Great Nut preacher, LISTEN AND RECITE! 2615 | -9/Scraptown | Discovered new exit (range 11) 2756 | -9/Scraptown | Visited IN-MT5's Study 2774 | -9/Scraptown | Build established: Mutant 2815 | -9/Scraptown | Visited TADAMA 2827 | -9/Scraptown | Visited Awakened 2857 | -9/Scraptown | Visited CR-KLE's Repair Center 2889 | -9/Scraptown | Visited UFD Registry 2889 | -9/Scraptown | Registered with UFD as "Metamachine" 3015 | -9/Scraptown | Entered Cyclist Reading Room 3127 | -9/Scraptown | Visited Chapter 10 3159 | -9/Scraptown | Visited Scrapoid Research Area 3193 | -9/Scraptown | Visited Junk Repository 3460 | -9/Scraptown | Visited Research Penetration Think Tank 3490 | -9/Scraptown | Visited Analyses Database 3515 | -9/Scraptown | Visited Scrap Suit Storage 3542 | -9/Scraptown | Visited Science Guys 3582 | -9/Scraptown | Visited DA-N13 Charitable Foundation 3587 | -9/Scraptown | Found DCF Scrap (29 items) 3627 | -9/Scraptown | Visited Curators Association 3669 | -9/Scraptown | Visited Modified Component R&D 3819 | -9/Scraptown | Found Scrap Suit 3827 | -9/Scraptown | Found Scrap Suit 4000 | -9/Scraptown | CR-KLE repaired 7 parts 4170 | -9/Scraptown | Met Optimus 4170 | -9/Scraptown | Accepted into 0bPrime 4172 | -9/Scraptown | Build established: Derelict-Mutant 4258 | -9/Scraptown | Discovered new exit (range 3) 4261 | -9/Scraptown | Entered Factory 4261 | -6/Factory | Evolved 8 slots: Propulsion x2, Utility x5, Weapon x1 4332 | -6/Factory | Loaded intel: 8 recycling unit locations 4488 | -6/Factory | Discovered new exit (range 3) 4491 | -6/Factory | Identified exit to Factory 4611 | -6/Factory | Build established: Derelict-Scrapper 4940 | -6/Factory | Sucked down chute 4940 | -6/Factory | Entered Waste 4955 | -6/Waste | EMP discharged 4955 | -6/Waste | System corruption reached 10% 4964 | -6/Waste | Spotted C-40 Crusher 4996 | -6/Waste | Spotted C-40 Crusher 5007 | -6/Waste | Spotted C-40 Crusher 5030 | -6/Waste | Spotted C-40 Crusher 5032 | -6/Waste | Spotted C-40 Crusher 5055 | -6/Waste | EMP discharged 5105 | -6/Waste | Spotted C-40 Crusher 5137 | -6/Waste | Discovered new exit (range 16) 5155 | -6/Waste | EMP discharged 5160 | -6/Waste | Identified exit to Factory 5162 | -6/Waste | Entered Factory 5665 | -6/Factory | System corruption reached 30% 6556 | -6/Factory | Cargo convoy interrupted 6600 | -6/Factory | Build established: Scrapper 6680 | -6/Factory | Found Prototype Launcher 7030 | -6/Factory | Repaired Ovr. Railgun 7262 | -6/Factory | First assault squad dispatched 7331 | -6/Factory | Loaded intel: 7 recycling unit locations 7331 | -6/Factory | Learned location of Protoforge (-2) 7402 | -6/Factory | Spotted B-75 Beast 7483 | -6/Factory | Destroyed B-75 Beast 7795 | -6/Factory | Identified Mni. Smartbomb Launcher 7893 | -6/Factory | Core integrity fell below 50% 7904 | -6/Factory | Core integrity fell below 20% 7917 | -6/Factory | Build established: Mutant 7927 | -6/Factory | Lost 11 parts (1p4n5u1w) 8007 | -6/Factory | Identified exit to Lower Caves 8162 | -6/Factory | Entered Lower Caves 8218 | -6/Lower Caves | Build established: Hacker-Mutant 8672 | -6/Lower Caves | Lost 3 parts (1p1n1w) 8693 | -6/Lower Caves | Destroyed by 7L-1KP(g) with Beamcaster Last Messages --------------- 08565_ Destroyed Bore Cannon. 08565_ 5R-BF3(h) destroyed. 08568_ Acquired 16 matter. 08572_ Acquired Barrage Gun. 08576_ System corrupted: Matter fused (-7). 08580_ Acquired 17 matter. 08593_ L#M>/VHU 7Y 0BK2LF|&N 08609_ ,,P2IOVU8BBJP H6VJNVHHP#DAOHGTXH4PZL 08630_ System corrupted: Matter fused (-7). 08631_ Imp. Medium Treads destroyed. 08631_ Barrage Gun destroyed. 08633_ JL-1T7(l) suffers critical hit (Impale). 08641_ Lgt. Angular Momentum Engine destroyed. 08643_ JL-1T7(l) destroyed. 08645_ IX-510(g) destroyed. 08651_ 8GES& SC0LM7PHA:CC:W